bitfinex-derivatives/quotes_BTCF0:USTF0_20250207
["timestamp","ask_amount","ask_price","bid_price","bid_amount"]
[1738940495954,0.20138,99260.0,99243.0,0.3608]
[1738940496153,0.3608,99257.0,99233.0,0.33478686]
[1738940496451,0.3608,99257.0,99252.0,0.2013941]
[1738940497257,0.3608,99257.0,99242.0,0.3608]
[1738940497456,0.3608,99257.0,99254.0,0.201391]
[1738940497852,0.3608,99257.0,99242.0,0.3608]
[1738940497853,0.14612538,99266.0,99242.0,0.3608]
[1738940498055,0.14612538,99266.0,99265.0,0.2013693]
[1738940498254,0.14612538,99266.0,99243.0,0.65058221]
[1738940498459,0.14612538,99266.0,99265.0,0.2013693]
[1738940498854,0.3608,99271.0,99256.0,0.53930525]
[1738940499054,0.3608,99271.0,99270.0,0.2013591]
[1738940500168,0.3608,99271.0,99256.0,0.54933231]
[1738940500169,0.7216,99271.0,99261.0,0.00015115]
[1738940500363,0.3608,99262.0,99261.0,0.00015115]
[1738940500857,0.3608,99271.0,99261.0,0.00015115]
[1738940501053,0.3608,99271.0,99261.0,0.20152825]
[1738940501251,0.3608,99262.0,99261.0,0.00015115]
[1738940501459,0.3608,99271.0,99261.0,0.00015115]
[1738940501856,0.3608,99275.0,99266.0,0.2013669]
[1738940502052,0.00015115,99280.0,99268.0,0.2013625]
[1738940502258,0.3608,99275.0,99268.0,0.2013625]
[1738940502454,0.00015115,99280.0,99261.0,0.00015115]
[1738940502656,0.3608,99286.0,99261.0,0.30015115]
[1738940502859,0.5358354,99298.0,99270.0,0.26860525]
[1738940502860,0.1750354,99298.0,99270.0,0.26860525]
[1738940503061,0.1750354,99298.0,99291.0,0.2013147]
[1738940503262,0.1750354,99298.0,99293.0,0.2013109]
[1738940503458,0.1750354,99298.0,99286.0,0.26860525]
[1738940503657,0.3608,99312.0,99310.0,0.2012777]
[1738940503959,0.3608,99345.0,99322.0,0.2012537]
[1738940504163,0.3608,99345.0,99330.0,0.2012374]
[1738940504363,0.3608,99345.0,99331.0,0.3608]
[1738940504566,0.2012306,99334.0,99322.0,0.095]
[1738940504858,0.3608,99325.0,99321.0,0.00015107]
[1738940505059,0.2012537,99322.0,99321.0,0.00015107]
[1738940505264,0.2012537,99322.0,99307.0,0.3608]
[1738940505462,0.3608,99314.0,99312.0,0.00015107]
[1738940505664,0.2012729,99313.0,99312.0,7e-08]
[1738940506062,0.2013449,99277.0,99257.0,0.0946]
[1738940506255,0.2013652,99267.0,99257.0,0.0946]
[1738940506459,0.5621652,99267.0,99247.0,0.09564]
[1738940507067,0.5621652,99267.0,99230.0,0.26860525]
[1738940507068,0.5621652,99267.0,99243.0,0.09548]
[1738940507259,0.3608,99267.0,99257.0,0.00015107]
[1738940507459,0.5621834,99258.0,99257.0,0.00015107]
[1738940508469,0.8621834,99258.0,99257.0,7e-08]
[1738940508671,0.2014332,99234.0,99226.0,0.09544]
[1738940508965,0.5622332,99234.0,99227.0,0.2014464]
[1738940509170,0.3608,99234.0,99223.0,0.60284]
[1738940509469,0.2014254,99238.0,99229.0,0.2014413]
[1738940509664,0.3608,99262.0,99228.0,0.62940525]
[1738940509968,0.3608,99262.0,99238.0,0.2014234]
[1738940509969,0.3608,99249.0,99238.0,0.2014234]
[1738940510165,0.00015115,99255.0,99228.0,0.3608]
[1738940510467,0.00015115,99255.0,99253.0,0.2013916]
[1738940510969,0.3608,99254.0,99239.0,0.3608]
[1738940511360,0.3608,99254.0,99239.0,0.5622207]
[1738940511570,0.3608,99254.0,99239.0,0.46458236]
[1738940511767,0.2013989,99251.0,99239.0,0.26316166]
[1738940511959,0.3608,99254.0,99236.0,0.3608]
[1738940512161,0.3608,99254.0,99240.0,0.2014184]
[1738940512364,0.20427567,99253.0,99240.0,0.2014184]
[1738940512655,0.2014234,99239.0,99229.0,0.1348]
[1738940512860,0.3608,99241.0,99229.0,0.1348]
[1738940513167,0.3608,99249.0,99234.0,0.201431]
[1738940513365,0.3608,99249.0,99230.0,0.26860525]
[1738940513872,0.3608,99249.0,99229.0,0.1348]
[1738940514067,0.2014049,99248.0,99229.0,0.1348]
[1738940514369,0.3608,99249.0,99236.0,0.2014269]
[1738940514756,0.201415,99243.0,99229.0,0.1348]
[1738940514959,0.3608,99240.0,99229.0,0.1348]
[1738940515360,0.3608,99240.0,99233.0,0.2014322]
[1738940515578,0.3608,99240.0,99237.0,0.2014256]
[1738940515762,0.04897157,99248.0,99238.0,0.2014221]
[1738940516370,0.04897157,99248.0,99229.0,0.1348]
[1738940516565,0.04897157,99248.0,99239.0,0.2014211]
[1738940516874,0.04897157,99248.0,99236.0,0.3608]
[1738940517174,0.04897157,99248.0,99243.0,0.2014131]
[1738940517371,0.00015115,99255.0,99236.0,0.3608]
[1738940517372,0.00015115,99255.0,99244.0,0.3608]
[1738940517675,0.00151195,99290.0,99236.0,0.6608]
[1738940517676,0.2013411,99279.0,99254.0,0.3608]
[1738940517877,0.2371348,99271.0,99262.0,0.3608]
[1738940518168,0.2371348,99271.0,99270.0,0.3608]
[1738940518562,0.2371348,99271.0,99262.0,0.2013747]
[1738940518764,0.2013723,99264.0,99261.0,0.00015115]
[1738940519076,0.5621753,99262.0,99261.0,0.00015115]
[1738940519273,0.5621753,99262.0,99232.0,0.3608]
[1738940519274,0.3608,99262.0,99232.0,0.20980751]
[1738940519466,0.5622168,99242.0,99229.0,0.1348]
[1738940519666,0.3608,99242.0,99234.0,0.2014307]
[1738940519875,0.3608,99242.0,99229.0,0.1348]
[1738940520070,0.5622357,99233.0,99229.0,0.1348]
[1738940520371,0.5622357,99233.0,99205.0,0.3608]
[1738940520372,0.3608,99233.0,99221.0,0.01010647]
[1738940520580,0.3608,99224.0,99206.0,0.3449877]
[1738940520769,0.3608,99214.0,99212.0,0.2014762]
[1738940520969,0.3608,99224.0,99206.0,0.1435]
[1738940521165,0.3608,99240.0,99222.0,0.2014548]
[1738940521375,0.3608,99240.0,99220.0,0.3608]
[1738940521579,0.3608,99222.0,99212.0,0.3608]
[1738940521875,0.3608,99222.0,99201.0,0.343899]
[1738940521876,0.5622763,99213.0,99201.0,0.343899]
[1738940522071,0.3608,99202.0,99201.0,0.1424]
[1738940522381,0.3608,99202.0,99200.0,0.1]
[1738940522766,0.5622989,99202.0,99200.0,0.1]
[1738940523072,0.5622989,99202.0,99156.0,0.3608]
[1738940523073,0.2015068,99198.0,99163.0,0.1322]
[1738940523371,0.2015068,99198.0,99142.0,0.95993606]
[1738940523372,0.3608,99164.0,99146.0,0.09248]
[1738940523573,0.3608,99156.0,99150.0,0.31011922]
[1738940523769,0.44326,99201.0,99150.0,0.31011922]
[1738940523770,0.00015123,99167.0,99150.0,0.31011922]
[1738940523975,0.00015123,99167.0,99157.0,0.3608]
[1738940524174,0.00151275,99233.0,99166.0,0.7216]
[1738940524368,0.3608,99228.0,99206.0,0.3608]
[1738940524677,0.3608,99228.0,99190.0,0.26860525]
[1738940524678,0.3608,99220.0,99197.0,0.3608]
[1738940524972,0.3608,99211.0,99192.0,0.3608]
[1738940525276,1.16,99210.0,99192.0,0.3608]
[1738940525475,0.2014942,99204.0,99192.0,0.00015123]
[1738940525777,0.3608,99198.0,99192.0,0.00015123]
[1738940525968,0.13356,99210.0,99192.0,0.00015123]
[1738940526170,0.1322,99210.0,99192.0,0.00015123]
[1738940526369,0.3608,99203.0,99192.0,0.00015123]
[1738940526571,0.3608,99193.0,99192.0,0.00015123]
[1738940526874,0.2015467,99178.0,99163.0,0.3608]
[1738940527063,0.2015532,99175.0,99163.0,0.3608]
[1738940527267,0.3608,99176.0,99163.0,0.3608]
[1738940527573,0.2015602,99171.0,99163.0,0.3608]
[1738940527975,0.00015123,99177.0,99163.0,0.3608]
[1738940528179,0.00015123,99177.0,99176.0,0.2015499]
[1738940528477,0.00015123,99177.0,99174.0,0.3608]
[1738940528872,0.3608,99175.0,99147.0,0.36231272]
[1738940529071,0.2015763,99164.0,99147.0,0.36231272]
[1738940529375,0.2015895,99157.0,99147.0,0.36231272]
[1738940529675,0.3608,99167.0,99147.0,0.36231272]
[1738940530067,0.3608,99167.0,99147.0,0.00151272]
[1738940530271,0.3608,99151.0,99147.0,0.00151272]
[1738940530469,0.3608,99151.0,99121.0,0.3608]
[1738940530674,0.3608,99140.0,99121.0,0.3608]
[1738940530870,0.00136,99151.0,99134.0,0.3608]
[1738940531073,0.3608,99163.0,99147.0,0.2016089]
[1738940531276,0.00015131,99152.0,99143.0,0.3608]
[1738940531471,0.00015131,99152.0,99142.0,0.3608]
[1738940531775,0.00015131,99152.0,99133.0,0.3608]
[1738940531975,0.00015131,99152.0,99121.0,0.09204]
[1738940532176,0.3608,99138.0,99119.0,0.3608]
[1738940532380,0.2016243,99140.0,99119.0,0.5624644]
[1738940532678,0.3608,99146.0,99128.0,0.2016467]
[1738940532981,0.3608,99146.0,99131.0,0.201641]
[1738940533482,0.3608,99146.0,99135.0,0.2016316]
[1738940533779,0.3608,99146.0,99134.0,0.3608]
[1738940533972,0.3608,99146.0,99135.0,0.5624328]
[1738940534282,0.3608,99146.0,99129.0,0.112244]
[1738940534283,0.2016167,99144.0,99129.0,0.112244]
[1738940534482,0.2016167,99144.0,99129.0,0.3608]
[1738940534787,0.201623,99141.0,99129.0,0.3608]
[1738940535088,0.00015131,99152.0,99138.0,0.3608]
[1738940535278,0.00015131,99152.0,99129.0,0.3608]
[1738940535684,0.00015131,99152.0,99134.0,0.2016346]
[1738940536071,0.2016018,99151.0,99137.0,0.3608]
[1738940536386,0.00015131,99152.0,99137.0,0.3608]
[1738940536387,0.2016071,99148.0,99137.0,0.3608]
[1738940536779,0.00015131,99152.0,99137.0,0.3608]
[1738940537086,0.00015131,99152.0,99151.0,0.3608]
[1738940537588,0.14693611,99183.0,99166.0,0.2015692]
[1738940537783,0.14693611,99183.0,99179.0,0.3608]
[1738940538175,0.3608,99181.0,99161.0,0.3608]
[1738940538482,0.2015589,99172.0,99166.0,0.3608]
[1738940538682,0.3608,99170.0,99149.0,0.3608]
[1738940538895,0.2015748,99164.0,99161.0,0.00015131]
[1738940539077,0.3608,99162.0,99126.0,0.3608]
[1738940539391,0.2016237,99140.0,99126.0,0.3608]
[1738940539680,0.2016276,99138.0,99126.0,0.3608]
[1738940539885,0.2016408,99132.0,99126.0,0.3608]
[1738940540082,0.3608,99127.0,99110.0,0.1871]
[1738940540279,0.2016516,99126.0,99105.0,0.01006558]
[1738940540583,0.3608,99119.0,99102.0,0.1849]
[1738940540888,0.3608,99127.0,99102.0,0.1849]
[1738940541278,0.2016516,99126.0,99109.0,0.3608]
[1738940541887,0.3608,99127.0,99102.0,0.1849]
[1738940542086,0.3608,99127.0,99100.0,0.36860525]
[1738940542087,0.3608,99119.0,99100.0,0.1]
[1738940542278,0.7216,99101.0,99054.0,0.3608]
[1738940542480,0.2017549,99076.0,99054.0,0.3608]
[1738940542781,0.3608,99078.0,99046.0,0.3608]
[1738940542983,0.3608,99078.0,99042.0,0.35673606]
[1738940542984,0.26860525,99060.0,99042.0,0.35673606]
[1738940543182,0.3608,99026.0,98985.0,0.44160369]
[1738940543377,0.3608,98986.0,98985.0,0.44160369]
[1738940543683,0.3608,99018.0,98986.0,0.2019361]
[1738940543985,0.00015147,98995.0,98990.0,0.26860525]
[1738940544177,0.3608,99018.0,98994.0,0.5627205]
[1738940544375,0.3608,99018.0,98994.0,0.3608]
[1738940544884,0.3608,99005.0,98985.0,0.64354079]
[1738940545084,0.3608,99018.0,98981.0,0.3608]
[1738940545287,0.3608,99018.0,99006.0,0.2018951]
[1738940545596,0.3608,99007.0,98992.0,0.2019244]
[1738940545781,0.3608,99007.0,98991.0,0.3608]
[1738940545983,0.3608,98997.0,98990.0,0.00015147]
[1738940546284,0.00015147,99009.0,98996.0,0.2019148]
[1738940546482,0.00015147,99009.0,98998.0,0.3608]
[1738940546682,0.3608,99005.0,98990.0,0.00015147]
[1738940546879,0.3608,98997.0,98990.0,0.00015147]
[1738940547289,0.2019266,98991.0,98990.0,7e-08]
[1738940547787,0.00136,98997.0,98990.0,7e-08]
[1738940547980,0.3608,99000.0,98990.0,7e-08]
[1738940548385,0.3608,98991.0,98990.0,7e-08]
[1738940548787,0.3608,99000.0,98990.0,7e-08]
[1738940549393,0.2019158,98997.0,98990.0,7e-08]
[1738940549589,0.3608,99000.0,98990.0,7e-08]
[1738940549790,0.3608,99000.0,98990.0,0.62940532]
[1738940549981,0.00015147,99009.0,99002.0,0.2019032]
[1738940550185,0.00015147,99009.0,99007.0,0.201894]
[1738940550490,0.3608,99025.0,99017.0,0.201873]
[1738940550692,0.3608,99028.0,99010.0,0.26860525]
[1738940551195,0.3608,99016.0,99010.0,0.26860525]
[1738940551396,0.2018551,99027.0,99010.0,0.26860525]
[1738940551594,0.3608,99020.0,99003.0,0.00015147]
[1738940551797,0.5626681,99020.0,99003.0,0.00015147]
[1738940552094,0.00015147,99023.0,99010.0,0.26860525]
[1738940552292,0.00015147,99023.0,99017.0,0.3608]
[1738940552495,0.00015147,99023.0,99019.0,0.2018683]
[1738940552796,0.3608,99048.0,99031.0,0.201845]
[1738940552994,0.14862017,99032.0,99020.0,0.26860525]
[1738940553387,0.5626466,99031.0,99008.0,0.01033434]
[1738940553589,0.2018495,99029.0,99016.0,0.3608]
[1738940553984,0.3608,99018.0,99000.0,0.45250525]
[1738940554196,0.3608,99006.0,98981.0,0.01015915]
[1738940554398,0.5626974,99006.0,98991.0,0.3608]
[1738940554594,0.2018974,99006.0,98982.0,0.2019443]
[1738940554785,0.3608,99017.0,99008.0,0.201891]
[1738940554993,0.14862017,99032.0,99007.0,0.26860525]
[1738940555188,0.3608,99009.0,98990.0,0.26860525]
[1738940555394,0.3608,98997.0,98983.0,0.01020218]
[1738940555591,0.3608,98987.0,98969.0,0.60436]
[1738940555799,0.3608,98979.0,98969.0,0.60436]
[1738940555999,0.3608,98979.0,98950.0,0.26860525]
[1738940556303,0.3608,98979.0,98968.0,0.00015147]
[1738940556304,0.3608,98971.0,98968.0,0.00015147]
[1738940556493,0.2019695,98970.0,98968.0,0.00015147]
[1738940557094,0.3608,98971.0,98968.0,0.00015147]
[1738940558001,0.3608,98979.0,98968.0,0.00015147]
[1738940558796,0.00015147,98988.0,98970.0,0.3608]
[1738940559005,0.3608,98982.0,98968.0,0.00015147]
[1738940560505,0.2019519,98979.0,98968.0,0.00015147]
[1738940560798,0.3608,98971.0,98968.0,0.00015147]
[1738940560997,0.2019569,98977.0,98968.0,0.00015147]
[1738940561196,0.3608,98974.0,98968.0,0.00015147]
[1738940561395,0.2019634,98973.0,98968.0,0.00015147]
[1738940561705,0.2019715,98969.0,98931.0,0.2020479]
[1738940561906,0.2019797,98965.0,98943.0,0.3608]
[1738940562395,0.2019797,98965.0,98934.0,0.01029282]
[1738940563001,0.5019797,98965.0,98934.0,0.01029282]
[1738940563303,0.2019797,98965.0,98932.0,0.3608]
[1738940563489,1.0019797,98965.0,98941.0,0.3608]
[1738940563690,0.2019797,98965.0,98941.0,0.5628267]
[1738940564005,0.2019797,98965.0,98945.0,0.20202]
[1738940564194,0.3608,98978.0,98953.0,0.35208036]
[1738940564395,0.5627539,98978.0,98953.0,0.35208036]
[1738940564603,0.3608,98969.0,98953.0,0.2020033]
[1738940564802,0.3608,98969.0,98945.0,0.19796791]
[1738940565104,0.00015155,98975.0,98946.0,0.202018]
[1738940565497,0.3608,98952.0,98939.0,0.3608]
[1738940565798,0.3608,98952.0,98923.0,0.96528]
[1738940565799,0.3608,98961.0,98932.0,0.3608]
[1738940565999,0.2020109,98950.0,98932.0,0.3608]
[1738940566391,0.00015155,98951.0,98932.0,0.3608]
[1738940566591,0.00015155,98951.0,98944.0,0.3608]
[1738940566799,0.2020143,98949.0,98932.0,0.6608]
[1738940566996,0.2020143,98949.0,98932.0,0.3608]
[1738940567399,0.2020143,98949.0,98933.0,0.01579231]
[1738940567900,0.2020143,98949.0,98932.0,0.3608]
[1738940568204,0.00015155,98951.0,98932.0,0.3608]
[1738940568399,0.00015155,98951.0,98944.0,0.3608]
[1738940568900,0.2020203,98946.0,98944.0,0.3608]
[1738940569097,0.2020365,98938.0,98932.0,0.20919378]
[1738940569299,0.202037,98937.0,98932.0,0.20919378]
[1738940569501,0.2020427,98935.0,98933.0,0.04106076]
[1738940570103,0.2020746,98919.0,98917.0,0.00151627]
[1738940570698,0.7216,98921.0,98886.0,0.5718]
[1738940570898,0.2021084,98902.0,98900.0,1e-07]
[1738940571304,0.3607999,98895.0,98820.0,0.26860525]
[1738940571500,0.3608,98850.0,98830.0,0.3608]
[1738940571807,0.3608,98854.0,98827.0,0.04418611]
[1738940572005,0.00015172,98853.0,98840.0,0.26860525]
[1738940572311,0.00015172,98853.0,98844.0,0.01565148]
[1738940572606,0.00015172,98853.0,98844.0,0.37645148]
[1738940572807,0.36095172,98853.0,98844.0,0.01565148]
[1738940573006,0.36095172,98853.0,98840.0,0.01565148]
[1738940573205,0.00015172,98853.0,98842.0,0.2022299]
[1738940573505,0.00015172,98853.0,98852.0,0.2022105]
[1738940573896,0.00015172,98853.0,98843.0,0.04109887]
[1738940574103,0.00015172,98853.0,98846.0,0.2022228]
[1738940574404,0.00015172,98853.0,98851.0,0.2022119]
[1738940574597,0.3608,98855.0,98851.0,0.2022119]
[1738940574801,0.14710367,98931.0,98851.0,0.2022119]
[1738940574802,0.4608,99000.0,98950.0,0.01]
[1738940575107,0.2019246,98992.0,98991.0,0.01]
[1738940575313,0.2019144,98997.0,98996.0,0.3608]
[1738940575498,0.1,99000.0,98960.0,0.26860525]
[1738940575499,0.2019328,98988.0,98987.0,0.01]
[1738940575907,0.00104001,98997.0,98979.0,0.3608]
[1738940576209,0.2019287,98990.0,98989.0,0.3608]
[1738940576415,1.7019287,98990.0,98989.0,0.3608]
[1738940576907,0.2019513,98979.0,98978.0,2e-08]
[1738940577116,0.3608,98979.0,98947.0,0.3608]
[1738940577302,0.2020061,98953.0,98947.0,0.3608]
[1738940577503,0.6608,98979.0,98947.0,0.3608]
[1738940577504,0.3,98979.0,98947.0,0.3608]
[1738940577710,1.5,98970.0,98947.0,0.3608]
[1738940578013,1.7019695,98970.0,98969.0,0.3608]
[1738940578206,0.201992,98959.0,98958.0,0.3608]
[1738940578409,1.501,98970.0,98961.0,0.01]
[1738940578602,1.501,98970.0,98958.0,0.3608]
[1738940578603,1.5,98970.0,98969.0,0.3608]
[1738940578800,0.2019716,98969.0,98968.0,0.3608]
[1738940579209,1.50096001,98970.0,98968.0,0.3608]
[1738940579412,1.5,98970.0,98968.0,0.3608]
[1738940580117,0.1,99000.0,98995.0,0.01]
[1738940580414,0.1,99000.0,98997.0,0.7216]
[1738940580415,0.18700579,98998.0,98997.0,0.7216]
[1738940580609,0.26619536,99016.0,99012.0,0.01]
[1738940580811,0.2017777,99065.0,99024.0,0.01]
[1738940581112,0.2017777,99065.0,99012.0,0.3608]
[1738940581113,0.3608,99065.0,99041.0,0.7216]
[1738940581410,1.5,99042.0,99039.0,0.3608]
[1738940581609,0.2018248,99041.0,99039.0,0.3608]
[1738940581812,1.50068,99042.0,99039.0,0.3608]
[1738940582008,1.5,99042.0,99039.0,0.3608]
[1738940582204,0.00015143,99050.0,99045.0,0.01]
[1738940582704,0.2018085,99049.0,99045.0,0.01]
[1738940582910,0.2018085,99049.0,99031.0,0.00015143]
[1738940582911,0.2018245,99042.0,99031.0,0.00015143]
[1738940583126,0.2018615,99024.0,99017.0,0.3608]
[1738940583306,0.3608,99018.0,99003.0,0.3608]
[1738940583614,0.201903,99003.0,98990.0,0.3608]
[1738940583807,0.3608,99018.0,99001.0,0.3608]
[1738940584112,1.50064,99032.0,99010.0,0.3608]
[1738940584421,1.5,99032.0,99031.0,0.3608]
[1738940584606,0.2018252,99041.0,99031.0,0.3608]
[1738940584801,0.2018252,99041.0,99022.0,0.26860525]
[1738940584802,0.3608,99055.0,99023.0,0.3608]
[1738940585107,0.00015152,99041.0,99031.0,0.3608]
[1738940585308,0.00015152,99041.0,99040.0,0.3608]
[1738940585512,0.00015152,99041.0,99031.0,0.3608]
[1738940585705,0.00015152,99041.0,99016.0,0.3608]
[1738940586313,0.2018839,99012.0,99011.0,0.00151489]
[1738940586700,0.2018917,99009.0,98981.0,0.3608]
[1738940586910,0.2018917,99009.0,98985.0,0.2019383]
[1738940587120,0.2018917,99009.0,98990.0,0.26860525]
[1738940587308,0.2018618,99023.0,99001.0,0.3608]
[1738940587509,0.00015152,99007.0,98998.0,0.3608]
[1738940587715,0.41,98999.0,98998.0,0.3608]
[1738940589517,0.00015152,99007.0,98998.0,0.3608]
[1738940589911,0.00015152,99007.0,98990.0,0.3608]
[1738940590317,0.201901,99004.0,98990.0,0.3608]
[1738940590717,0.00015152,99007.0,98990.0,0.3608]
[1738940591017,0.00064,99073.0,99057.0,0.3608]
[1738940591219,0.2016814,99112.0,99084.0,0.2017356]
[1738940591420,0.1854,99143.0,99108.0,0.3608]
[1738940591714,0.3608,99132.0,99100.0,0.26860525]
[1738940591909,0.00201753,99131.0,99117.0,0.3608]
[1738940592217,0.00015132,99126.0,99110.0,0.3608]
[1738940592515,0.00201765,99125.0,99106.0,0.00015132]
[1738940592709,0.2016599,99122.0,99121.0,0.3608]
[1738940593212,0.00201765,99125.0,99121.0,0.3608]
[1738940593413,0.00201765,99125.0,99124.0,0.3608]
[1738940594608,0.17187661,99134.0,99124.0,0.3608]
[1738940594920,0.17187661,99134.0,99133.0,0.3608]
[1738940596406,0.00015132,99143.0,99133.0,0.3608]
[1738940596611,0.00015132,99143.0,99142.0,0.3608]
[1738940597119,0.06690939,99144.0,99142.0,0.6608]
[1738940597314,0.06690939,99144.0,99143.0,0.2016172]
[1738940597619,0.06690939,99144.0,99142.0,0.3608]
[1738940598018,0.20159,99157.0,99142.0,0.3608]
[1738940598213,0.2015887,99157.0,99156.0,0.3608]
[1738940598518,0.3608,99157.0,99140.0,0.10312]
[1738940598814,0.00015132,99159.0,99149.0,0.2016048]
[1738940599014,0.3608,99157.0,99140.0,0.37236525]
[1738940599210,0.2016152,99144.0,99140.0,0.10312]
[1738940599414,0.3608,99145.0,99133.0,0.00015132]
[1738940599415,0.2016289,99138.0,99133.0,0.00015132]
[1738940599622,0.2016079,99148.0,99133.0,0.00015132]
[1738940599915,0.3608,99157.0,99138.0,0.26860525]
[1738940600116,0.3608,99157.0,99138.0,0.3608]
[1738940600418,0.3608,99157.0,99138.0,0.6608]
[1738940600619,0.3608,99157.0,99138.0,0.3608]
[1738940600818,0.00015132,99159.0,99133.0,0.00015132]
[1738940601128,0.3608,99134.0,99108.0,0.4644]
[1738940601418,0.3608,99124.0,99108.0,0.1036]
[1738940601613,0.3608,99145.0,99116.0,0.91436138]
[1738940601807,0.3608,99131.0,99116.0,0.91436138]
[1738940602008,0.3608,99117.0,99088.0,0.5028]
[1738940602213,0.3608,99109.0,99088.0,0.1036]
[1738940602416,0.3608,99109.0,99100.0,0.00015132]
[1738940602827,0.2016966,99104.0,99100.0,0.00015132]
[1738940603124,0.2017027,99101.0,99100.0,0.00015132]
[1738940603417,0.3608,99104.0,99065.0,0.2017748]
[1738940603618,0.3608,99083.0,99071.0,0.8057627]
[1738940603818,0.3608,99083.0,99071.0,0.604]
[1738940604118,0.3608,99092.0,99084.0,0.2017363]
[1738940604512,0.3608,99092.0,99086.0,0.2017329]
[1738940604818,0.00015132,99098.0,99078.0,0.00015132]
[1738940605012,0.00015132,99098.0,99094.0,0.201716]
[1738940605208,0.3608,99095.0,99086.0,0.3608]
[1738940605423,0.3608,99095.0,99084.0,0.2017359]
[1738940605631,0.3608,99095.0,99078.0,0.00015132]
[1738940605820,0.3608,99095.0,99090.0,0.2017231]
[1738940606015,0.00015132,99098.0,99080.0,0.26860525]
[1738940606223,0.00015132,99098.0,99096.0,0.201712]
[1738940606421,0.3608,99134.0,99117.0,0.2016685]
[1738940606623,0.3608,99134.0,99095.0,0.6608]
[1738940606919,0.3608,99119.0,99111.0,0.2016806]
[1738940607124,0.1882,99149.0,99095.0,0.36136]
[1738940607125,0.3608,99116.0,99095.0,0.36136]
[1738940607325,0.3608,99116.0,99095.0,0.6608]
[1738940607517,0.3608,99132.0,99100.0,0.26860525]
[1738940607718,0.00015132,99115.0,99112.0,0.2016793]
[1738940607925,0.00015132,99115.0,99114.0,0.2016762]
[1738940608720,0.00015132,99115.0,99113.0,0.3608]
[1738940608922,0.00015132,99115.0,99100.0,0.26860525]
[1738940608923,0.36095132,99115.0,99100.0,0.26860525]
[1738940609124,0.3608,99102.0,99096.0,0.00015132]
[1738940609329,0.2016867,99109.0,99096.0,0.00015132]
[1738940609520,0.36095132,99115.0,99099.0,0.26860525]
[1738940610030,0.36095132,99115.0,99101.0,0.2017022]
[1738940610225,0.36095132,99115.0,99099.0,0.26860525]
[1738940610525,0.2017104,99098.0,99096.0,0.00015132]
[1738940610730,0.3608,99103.0,99092.0,0.00151371]
[1738940610915,0.3608,99103.0,99053.0,0.17656363]
[1738940610916,0.26860525,99090.0,99053.0,0.17656363]
[1738940611117,0.2017984,99054.0,99053.0,0.17656363]
[1738940611529,0.3608,99059.0,99036.0,0.30073687]
[1738940611721,0.5626127,99047.0,99036.0,0.30073687]
[1738940612128,0.2018247,99042.0,99036.0,0.00151456]
[1738940612427,0.3608,99037.0,99036.0,0.00151456]
[1738940613224,0.562633,99037.0,99036.0,0.00151456]
[1738940614434,0.3608,99037.0,99035.0,0.35632718]
[1738940615322,0.3608,99037.0,99029.0,0.00015141]
[1738940615522,0.3608,99037.0,99013.0,1.91556]
[1738940615523,0.3608,99030.0,99013.0,1.915]
[1738940615935,0.3608,99029.0,99014.0,0.2018796]
[1738940616229,0.3608,99039.0,99024.0,0.2018575]
[1738940616637,0.3608,99039.0,99019.0,0.26860525]
[1738940617134,0.3608,99039.0,99020.0,0.201866]
[1738940617335,0.3608,99039.0,99019.0,0.26860525]
[1738940617537,0.3608,99039.0,99024.0,0.2018578]
[1738940617835,0.3608,99039.0,99019.0,0.26860525]
[1738940618033,0.3608,99030.0,99013.0,2.1275996]
[1738940618236,0.3608,99015.0,99013.0,1.9250796]
[1738940618937,0.3608,99030.0,99013.0,1.9250796]
[1738940619434,0.3608,99018.0,99013.0,1.9250796]
[1738940620734,0.3608,99017.0,99013.0,1.9250796]
[1738940620935,0.2018799,99014.0,99013.0,1.915]
[1738940621131,0.2019096,99000.0,98979.0,0.60412]
[1738940621332,0.3608,98996.0,98979.0,0.60412]
[1738940622034,0.7216,98996.0,98981.0,0.01039098]
[1738940622239,0.2019338,98988.0,98981.0,0.01039098]
[1738940622427,0.3608,98982.0,98971.0,0.23850261]
[1738940622629,0.3608,98973.0,98971.0,0.23850261]
[1738940623540,0.3608,98973.0,98961.0,0.01026304]
[1738940623731,0.3608,98963.0,98957.0,0.2019959]
[1738940623927,0.3608,98963.0,98944.0,0.2018]
[1738940624140,0.3608,98963.0,98949.0,0.011644]
[1738940624326,0.3608,98953.0,98950.0,0.2020096]
[1738940624736,0.3608,98953.0,98944.0,0.01024158]
[1738940625045,0.3608,98945.0,98930.0,0.23850261]
[1738940625335,0.3608,98931.0,98930.0,0.23850261]
[1738940625537,0.3608,98931.0,98902.0,0.41535849]
[1738940625538,0.2021064,98904.0,98902.0,0.41535849]
[1738940625740,0.7216,98903.0,98902.0,0.41535849]
[1738940625928,0.7216,98903.0,98888.0,0.98880523]
[1738940626135,1.0216,98903.0,98888.0,0.98880523]
[1738940626443,0.5629351,98889.0,98888.0,0.98820523]
[1738940626940,0.3608,98889.0,98888.0,0.98820523]
[1738940627342,0.3608,98889.0,98868.0,0.0103468]
[1738940627542,0.3608,98881.0,98863.0,0.2021879]
[1738940627930,0.3608,98881.0,98868.0,0.2021765]
[1738940628151,0.3608,98881.0,98860.0,0.26860525]
[1738940628439,0.3608,98872.0,98860.0,0.26860525]
[1738940629029,0.3608,98872.0,98860.0,0.2790256]
[1738940629233,0.3608,98872.0,98861.0,0.2021919]
[1738940629637,0.3608,98872.0,98860.0,0.26860525]
[1738940630142,0.3608,98880.0,98867.0,0.3608]
[1738940630334,0.00015164,98882.0,98872.0,0.2021681]
[1738940630537,0.00015164,98882.0,98875.0,0.3608]
[1738940630745,0.36095164,98882.0,98863.0,0.2021872]
[1738940631042,0.00015164,98882.0,98860.0,0.27896129]
[1738940631236,0.00015164,98882.0,98875.0,0.3608]
[1738940631545,0.00015164,98882.0,98879.0,0.2021542]
[1738940632245,0.7216,98880.0,98860.0,0.01035604]
[1738940632540,0.7216,98880.0,98840.0,0.26860525]
[1738940632541,0.3608,98861.0,98840.0,0.26860525]
[1738940632745,0.3608,98870.0,98855.0,0.3608]
[1738940632940,0.3608,98856.0,98839.0,0.21602802]
[1738940633143,0.00151796,98892.0,98840.0,0.26860525]
[1738940633144,0.3608,98860.0,98840.0,0.26860525]